[Event "Titled Tuesday Blitz March 01 Late 2022"]
[White "Paravyan, David"]
[Black "Abdrlauf, Elham"]
[WhiteFideId "4194985"]
[BlackFideId "1533533"]
[WhiteElo "2569"]
[BlackElo "2334"]
[Result "1-0"]
[Round "09"]
[TimeControl "180+1"]
[Date "2022.03.01"]
[WhiteClock "0:00:10"]
[BlackClock "0:00:43"]

1. e4 {[%clk 0:03:00]}  c6 {[%clk 0:02:59]} 2. d4 {[%clk 0:03:00]}  d5 {[%clk 0:02:59]} 3. e5 {[%clk 0:03:00]}  c5 {[%clk 0:02:59]} 4. Nf3 {[%clk 0:03:00]}  cxd4 {[%clk 0:03:00]} 5. Nxd4 {[%clk 0:03:01]}  Nc6 {[%clk 0:03:00]} 6. Nxc6 {[%clk 0:03:01]}  bxc6 {[%clk 0:03:01]} 7. Bd3 {[%clk 0:03:02]}  e6 {[%clk 0:03:01]} 8. O-O {[%clk 0:03:01]}  Ne7 {[%clk 0:03:00]} 9. Nd2 {[%clk 0:03:02]}  Ng6 {[%clk 0:03:00]} 10. Nf3 {[%clk 0:03:02]}  Be7 {[%clk 0:03:00]} 11. c4 {[%clk 0:03:00]}  O-O {[%clk 0:03:00]} 12. Re1 {[%clk 0:02:56]}  Ba6 {[%clk 0:02:57]} 13. Qa4 {[%clk 0:02:04]}  Bxc4 {[%clk 0:02:55]} 14. Bxc4 {[%clk 0:02:04]}  dxc4 {[%clk 0:02:56]} 15. Qxc4 {[%clk 0:02:04]}  Qd5 {[%clk 0:02:55]} 16. Qc2 {[%clk 0:02:03]}  Qc5 {[%clk 0:02:48]} 17. Qxc5 {[%clk 0:02:00]}  Bxc5 {[%clk 0:02:49]} 18. Bd2 {[%clk 0:01:49]}  Rab8 {[%clk 0:02:43]} 19. Rac1 {[%clk 0:01:47]}  Bb4 {[%clk 0:02:43]} 20. Bxb4 {[%clk 0:01:45]}  Rxb4 {[%clk 0:02:44]} 21. b3 {[%clk 0:01:45]}  Rc8 {[%clk 0:02:38]} 22. g3 {[%clk 0:01:41]}  Ne7 {[%clk 0:02:34]} 23. Rc5 {[%clk 0:01:38]}  Rb5 {[%clk 0:02:34]} 24. Rec1 {[%clk 0:01:36]}  Rxc5 {[%clk 0:02:35]} 25. Rxc5 {[%clk 0:01:37]}  Rd8 {[%clk 0:02:35]} 26. Ra5 {[%clk 0:01:35]}  Rd7 {[%clk 0:02:35]} 27. Ng5 {[%clk 0:01:33]}  h6 {[%clk 0:02:26]} 28. Ne4 {[%clk 0:01:32]}  Nf5 {[%clk 0:02:19]} 29. Ra6 {[%clk 0:01:24]}  Rd4 {[%clk 0:01:52]} 30. Nc5 {[%clk 0:01:17]}  Rd5 {[%clk 0:01:52]} 31. Rxc6 {[%clk 0:01:16]}  Rxe5 {[%clk 0:01:50]} 32. Nd7 {[%clk 0:00:51]}  Re1+ {[%clk 0:01:47]} 33. Kg2 {[%clk 0:00:51]}  g5 {[%clk 0:01:43]} 34. Ra6 {[%clk 0:00:47]}  h5 {[%clk 0:01:20]} 35. Rxa7 {[%clk 0:00:40]}  g4 {[%clk 0:01:20]} 36. Nf6+ {[%clk 0:00:35]}  Kf8 {[%clk 0:01:17]} 37. Nxh5 {[%clk 0:00:29]}  Re2 {[%clk 0:01:11]} 38. Kf1 {[%clk 0:00:28]}  Rb2 {[%clk 0:01:11]} 39. Nf6 {[%clk 0:00:26]}  Nh6 {[%clk 0:01:06]} 40. Ra4 {[%clk 0:00:25]}  Rb1+ {[%clk 0:00:59]} 41. Kg2 {[%clk 0:00:24]}  Rb2 {[%clk 0:00:59]} 42. Nxg4 {[%clk 0:00:23]}  Nf5 {[%clk 0:01:00]} 43. h4 {[%clk 0:00:20]}  Nd6 {[%clk 0:01:00]} 44. h5 {[%clk 0:00:19]}  Kg7 {[%clk 0:00:58]} 45. Rd4 {[%clk 0:00:16]}  Nf5 {[%clk 0:00:58]} 46. Ra4 {[%clk 0:00:16]}  Nd6 {[%clk 0:00:56]} 47. Ra7 {[%clk 0:00:16]}  Ne4 {[%clk 0:00:56]} 48. h6+ {[%clk 0:00:15]}  Kg6 {[%clk 0:00:56]} 49. h7 {[%clk 0:00:16]}  Kxh7 {[%clk 0:00:55]} 50. Rxf7+ {[%clk 0:00:16]}  Kg6 {[%clk 0:00:56]} 51. Ne5+ {[%clk 0:00:16]}  Kg5 {[%clk 0:00:53]} 52. Rf4 {[%clk 0:00:17]}  Nf6 {[%clk 0:00:52]} 53. Nf3+ {[%clk 0:00:16]}  Kg6 {[%clk 0:00:52]} 54. Ne5+ {[%clk 0:00:17]}  Kg7 {[%clk 0:00:53]} 55. Ra4 {[%clk 0:00:17]}  Nd5 {[%clk 0:00:53]} 56. Nc4 {[%clk 0:00:17]}  Rc2 {[%clk 0:00:52]} 57. Ra7+ {[%clk 0:00:17]}  Kf6 {[%clk 0:00:52]} 58. a4 {[%clk 0:00:17]}  Rc3 {[%clk 0:00:52]} 59. Rb7 {[%clk 0:00:18]}  Rc1 {[%clk 0:00:52]} 60. a5 {[%clk 0:00:18]}  Ra1 {[%clk 0:00:52]} 61. b4 {[%clk 0:00:18]}  Ra4 {[%clk 0:00:52]} 62. Nb6 {[%clk 0:00:17]}  Ra2 {[%clk 0:00:44]} 63. Nxd5+ {[%clk 0:00:17]}  exd5 {[%clk 0:00:45]} 64. Rd7 {[%clk 0:00:16]}  Ke6 {[%clk 0:00:45]} 65. Rd8 {[%clk 0:00:16]}  Ra4 {[%clk 0:00:46]} 66. Rb8 {[%clk 0:00:13]}  d4 {[%clk 0:00:46]} 67. Kf3 {[%clk 0:00:13]}  Kd5 {[%clk 0:00:46]} 68. Rd8+ {[%clk 0:00:13]}  Kc4 {[%clk 0:00:47]} 69. Ke4 {[%clk 0:00:13]}  Ra2 {[%clk 0:00:41]} 70. Rxd4+ {[%clk 0:00:12]}  Kb5 {[%clk 0:00:42]} 71. f4 {[%clk 0:00:12]}  Re2+ {[%clk 0:00:42]} 72. Kf3 {[%clk 0:00:12]}  Re8 {[%clk 0:00:43]} 73. Kg4 {[%clk 0:00:12]}  Rf8 {[%clk 0:00:43]} 74. f5 {[%clk 0:00:12]}  Rd8 {[%clk 0:00:43]} 75. Rxd8 {[%clk 0:00:10]} 1-0


[Site "https://www.chess.com"]

[Event "Titled Tuesday Blitz March 01 Late 2022"]
[White "Prohorov, Olexandr"]
[Black "Miszler, Levente"]
[WhiteFideId "14105578"]
[BlackFideId "763276"]
[WhiteElo "1993"]
[BlackElo "1966"]
[Result "1-0"]
[Round "09"]
[TimeControl "180+1"]
[Date "2022.03.02"]
[WhiteClock "0:02:11"]
[BlackClock "0:00:48"]

1. e4 {[%clk 0:03:00]}  e6 {[%clk 0:02:58]} 2. d4 {[%clk 0:03:00]}  d5 {[%clk 0:02:57]} 3. Nc3 {[%clk 0:02:59]}  dxe4 {[%clk 0:02:52]} 4. Nxe4 {[%clk 0:02:58]}  Nd7 {[%clk 0:02:52]} 5. g4 {[%clk 0:02:56]}  b6 {[%clk 0:02:49]} 6. Bg2 {[%clk 0:02:52]}  Bb7 {[%clk 0:02:48]} 7. Ne2 {[%clk 0:02:52]}  Rb8 {[%clk 0:02:42]} 8. O-O {[%clk 0:02:49]}  g6 {[%clk 0:02:37]} 9. Bg5 {[%clk 0:02:47]}  f6 {[%clk 0:02:34]} 10. Bf4 {[%clk 0:02:42]}  Bg7 {[%clk 0:02:33]} 11. Re1 {[%clk 0:02:41]}  Ne7 {[%clk 0:02:31]} 12. c4 {[%clk 0:02:36]}  O-O {[%clk 0:02:31]} 13. N2g3 {[%clk 0:02:36]}  e5 {[%clk 0:02:30]} 14. dxe5 {[%clk 0:02:34]}  fxe5 {[%clk 0:02:25]} 15. Be3 {[%clk 0:02:29]}  Nc6 {[%clk 0:02:21]} 16. Qd5+ {[%clk 0:02:24]}  Kh8 {[%clk 0:02:18]} 17. Ng5 {[%clk 0:02:23]}  Qe7 {[%clk 0:02:13]} 18. Rad1 {[%clk 0:02:23]}  Rbd8 {[%clk 0:02:10]} 19. Qe6 {[%clk 0:02:20]}  Nc5 {[%clk 0:01:00]} 20. Qxe7 {[%clk 0:02:11]}  Nxe7 {[%clk 0:00:59]} 21. Bxc5 {[%clk 0:02:11]}  Bxg2 {[%clk 0:00:56]} 22. Bxe7 {[%clk 0:02:10]}  Rxd1 {[%clk 0:00:48]} 23. Rxd1 {[%clk 0:02:11]} 1-0


[Site "https://www.chess.com"]

[Event "Titled Tuesday Blitz March 01 Late 2022"]
[White "Ribeiro, Matheus Mendes Domingues"]
[Black "Tomb, Maroun"]
[WhiteFideId "324226923"]
[BlackFideId "5300398"]
[WhiteElo "1886"]
[BlackElo "2564"]
[Result "1-0"]
[Round "09"]
[TimeControl "180+1"]
[Date "2022.03.02"]
[WhiteClock "0:01:30"]
[BlackClock "0:02:13"]

1. c4 {[%clk 0:02:58]}  d6 {[%clk 0:03:00]} 2. Nf3 {[%clk 0:02:57]}  Nf6 {[%clk 0:03:00]} 3. Nc3 {[%clk 0:02:57]}  Nbd7 {[%clk 0:03:01]} 4. g3 {[%clk 0:02:57]}  e5 {[%clk 0:03:01]} 5. Bg2 {[%clk 0:02:57]}  c6 {[%clk 0:03:02]} 6. O-O {[%clk 0:02:56]}  Be7 {[%clk 0:03:03]} 7. d4 {[%clk 0:02:56]}  O-O {[%clk 0:03:03]} 8. dxe5 {[%clk 0:02:54]}  dxe5 {[%clk 0:03:03]} 9. b3 {[%clk 0:02:55]}  a5 {[%clk 0:03:02]} 10. Bb2 {[%clk 0:02:56]}  Qc7 {[%clk 0:03:03]} 11. Qd2 {[%clk 0:02:56]}  Re8 {[%clk 0:03:02]} 12. Rfd1 {[%clk 0:02:57]}  Nc5 {[%clk 0:03:02]} 13. Rac1 {[%clk 0:02:57]}  Bf8 {[%clk 0:02:59]} 14. Qc2 {[%clk 0:02:32]}  h6 {[%clk 0:02:54]} 15. Nh4 {[%clk 0:02:25]}  Be6 {[%clk 0:02:44]} 16. Nf5 {[%clk 0:02:24]}  g6 {[%clk 0:02:44]} 17. Ne3 {[%clk 0:02:16]}  h5 {[%clk 0:02:44]} 18. h3 {[%clk 0:02:15]}  Bh6 {[%clk 0:02:44]} 19. Kh2 {[%clk 0:01:52]}  Bxe3 {[%clk 0:02:40]} 20. fxe3 {[%clk 0:01:52]}  Bf5 {[%clk 0:02:36]} 21. e4 {[%clk 0:01:42]}  Be6 {[%clk 0:02:28]} 22. Qd2 {[%clk 0:01:42]}  Rad8 {[%clk 0:02:22]} 23. Qe3 {[%clk 0:01:42]}  Qe7 {[%clk 0:02:16]} 24. Ba3 {[%clk 0:01:33]}  b6 {[%clk 0:02:15]} 25. Na4 {[%clk 0:01:32]}  Nfd7 {[%clk 0:02:13]} 26. Nxb6 {[%clk 0:01:30]} 1-0


[Site "https://www.chess.com"]

[Event "Titled Tuesday Blitz March 01 Late 2022"]
[White "Romero Ruscalleda, Josep"]
[Black "P., Komal Kishore"]
[WhiteFideId "2231859"]
[BlackFideId "5016703"]
[WhiteElo "2307"]
[BlackElo "2113"]
[Result "1-0"]
[Round "09"]
[TimeControl "180+1"]
[Date "2022.03.02"]
[WhiteClock "0:00:45"]
[BlackClock "0:00:01"]

1. e4 {[%clk 0:02:57]}  c6 {[%clk 0:03:00]} 2. Nc3 {[%clk 0:02:56]}  d5 {[%clk 0:03:01]} 3. Nf3 {[%clk 0:02:56]}  Bg4 {[%clk 0:03:01]} 4. h3 {[%clk 0:02:55]}  Bxf3 {[%clk 0:03:01]} 5. Qxf3 {[%clk 0:02:55]}  e6 {[%clk 0:03:01]} 6. d4 {[%clk 0:02:52]}  dxe4 {[%clk 0:02:59]} 7. Qxe4 {[%clk 0:02:52]}  Nf6 {[%clk 0:02:58]} 8. Qd3 {[%clk 0:02:53]}  Qc7 {[%clk 0:02:52]} 9. a4 {[%clk 0:02:51]}  Nbd7 {[%clk 0:02:50]} 10. g3 {[%clk 0:02:51]}  Bd6 {[%clk 0:02:43]} 11. Bg2 {[%clk 0:02:51]}  O-O {[%clk 0:02:40]} 12. O-O {[%clk 0:02:50]}  a6 {[%clk 0:02:39]} 13. Ne2 {[%clk 0:02:46]}  c5 {[%clk 0:02:38]} 14. c3 {[%clk 0:02:45]}  c4 {[%clk 0:02:37]} 15. Qc2 {[%clk 0:02:41]}  b5 {[%clk 0:02:37]} 16. Bxa8 {[%clk 0:02:36]}  Rxa8 {[%clk 0:02:36]} 17. axb5 {[%clk 0:02:36]}  a5 {[%clk 0:02:35]} 18. Bf4 {[%clk 0:02:31]}  e5 {[%clk 0:02:33]} 19. dxe5 {[%clk 0:02:29]}  Nxe5 {[%clk 0:02:34]} 20. Bxe5 {[%clk 0:02:28]}  Bxe5 {[%clk 0:02:33]} 21. Qf5 {[%clk 0:02:26]}  g6 {[%clk 0:02:30]} 22. Qg5 {[%clk 0:02:22]}  Ne4 {[%clk 0:02:25]} 23. Qe3 {[%clk 0:02:20]}  f5 {[%clk 0:02:18]} 24. Nd4 {[%clk 0:02:15]}  Re8 {[%clk 0:02:05]} 25. Nf3 {[%clk 0:01:52]}  Bxg3 {[%clk 0:02:02]} 26. b6 {[%clk 0:01:44]}  Qb8 {[%clk 0:01:45]} 27. Qd4 {[%clk 0:01:32]}  Bxf2+ {[%clk 0:01:33]} 28. Rxf2 {[%clk 0:01:33]}  Qg3+ {[%clk 0:01:32]} 29. Rg2 {[%clk 0:01:33]}  Qxf3 {[%clk 0:01:31]} 30. b7 {[%clk 0:01:24]}  Qf4 {[%clk 0:01:11]} 31. Qxc4+ {[%clk 0:01:21]}  Kg7 {[%clk 0:01:05]} 32. Qd4+ {[%clk 0:01:16]}  Kh6 {[%clk 0:01:02]} 33. Rf1 {[%clk 0:01:15]}  Qc7 {[%clk 0:00:58]} 34. Qe3+ {[%clk 0:01:03]}  Kg7 {[%clk 0:00:48]} 35. Rxf5 {[%clk 0:01:00]}  Qxb7 {[%clk 0:00:15]} 36. Qd4+ {[%clk 0:00:58]}  Kh6 {[%clk 0:00:14]} 37. Rxa5 {[%clk 0:00:54]}  Qc6 {[%clk 0:00:05]} 38. Qe3+ {[%clk 0:00:53]}  Kg7 {[%clk 0:00:01]} 39. Ra7+ {[%clk 0:00:53]}  Kg8 {[%clk 0:00:01]} 40. Qd4 {[%clk 0:00:51]}  Qc5 {[%clk 0:00:01]} 41. Qxc5 {[%clk 0:00:49]}  Nxc5 {[%clk 0:00:02]} 42. Rd2 {[%clk 0:00:46]}  Ne4 {[%clk 0:00:01]} 43. Rdd7 {[%clk 0:00:45]} 1-0


[Site "https://www.chess.com"]

[Event "Titled Tuesday Blitz March 01 Late 2022"]
[White "Rosen, Eric"]
[Black "Bryakin, Mikhail"]
[WhiteFideId "2032562"]
[BlackFideId "4165314"]
[WhiteElo "2362"]
[BlackElo "2421"]
[Result "1-0"]
[Round "09"]
[TimeControl "180+1"]
[Date "2022.03.01"]
[WhiteClock "0:00:08"]
[BlackClock "0:01:09"]

1. d4 {[%clk 0:03:00]}  Nf6 {[%clk 0:02:58]} 2. Bf4 {[%clk 0:02:55]}  Nh5 {[%clk 0:02:56]} 3. Bg5 {[%clk 0:02:51]}  h6 {[%clk 0:02:55]} 4. Bh4 {[%clk 0:02:51]}  g5 {[%clk 0:02:56]} 5. Bg3 {[%clk 0:02:46]}  Nxg3 {[%clk 0:02:51]} 6. hxg3 {[%clk 0:02:47]}  Bg7 {[%clk 0:02:50]} 7. c3 {[%clk 0:02:44]}  b6 {[%clk 0:02:50]} 8. e4 {[%clk 0:02:44]}  Bb7 {[%clk 0:02:50]} 9. Nd2 {[%clk 0:02:45]}  d6 {[%clk 0:02:50]} 10. Bd3 {[%clk 0:02:38]}  Nd7 {[%clk 0:02:49]} 11. a4 {[%clk 0:02:34]}  a6 {[%clk 0:02:49]} 12. g4 {[%clk 0:02:23]}  e6 {[%clk 0:02:44]} 13. Ne2 {[%clk 0:02:21]}  c5 {[%clk 0:02:44]} 14. f3 {[%clk 0:02:10]}  Qc7 {[%clk 0:02:44]} 15. Nf1 {[%clk 0:02:06]}  O-O-O {[%clk 0:02:40]} 16. Nfg3 {[%clk 0:02:02]}  Kb8 {[%clk 0:02:39]} 17. Nh5 {[%clk 0:01:56]}  Bf8 {[%clk 0:02:40]} 18. Qd2 {[%clk 0:01:57]}  d5 {[%clk 0:02:26]} 19. e5 {[%clk 0:01:56]}  c4 {[%clk 0:02:25]} 20. Bc2 {[%clk 0:01:56]}  Be7 {[%clk 0:02:26]} 21. Qe3 {[%clk 0:01:47]}  Rde8 {[%clk 0:02:21]} 22. Neg3 {[%clk 0:01:20]}  Ka7 {[%clk 0:02:21]} 23. O-O {[%clk 0:01:20]}  Reg8 {[%clk 0:02:18]} 24. Rae1 {[%clk 0:01:08]}  Nf8 {[%clk 0:02:18]} 25. Qf2 {[%clk 0:01:04]}  Ng6 {[%clk 0:02:18]} 26. Nf6 {[%clk 0:00:45]}  Bxf6 {[%clk 0:02:17]} 27. exf6 {[%clk 0:00:46]}  Nf4 {[%clk 0:02:16]} 28. Qe3 {[%clk 0:00:39]}  h5 {[%clk 0:02:16]} 29. Nxh5 {[%clk 0:00:34]}  Nxh5 {[%clk 0:02:01]} 30. gxh5 {[%clk 0:00:34]}  Rxh5 {[%clk 0:02:00]} 31. Qe5 {[%clk 0:00:34]}  Qd7 {[%clk 0:01:54]} 32. Kf2 {[%clk 0:00:34]}  Bc6 {[%clk 0:01:54]} 33. Rh1 {[%clk 0:00:32]}  Rxh1 {[%clk 0:01:49]} 34. Rxh1 {[%clk 0:00:32]}  Bxa4 {[%clk 0:01:50]} 35. Bxa4 {[%clk 0:00:30]}  Qxa4 {[%clk 0:01:51]} 36. Qc7+ {[%clk 0:00:30]}  Ka8 {[%clk 0:01:50]} 37. Qxf7 {[%clk 0:00:27]}  Qe8 {[%clk 0:01:33]} 38. Qc7 {[%clk 0:00:23]}  Qb8 {[%clk 0:01:27]} 39. f7 {[%clk 0:00:15]}  Rf8 {[%clk 0:01:24]} 40. Qc6+ {[%clk 0:00:15]}  Qb7 {[%clk 0:01:25]} 41. Qe8+ {[%clk 0:00:14]}  Qc8 {[%clk 0:01:23]} 42. Qxc8+ {[%clk 0:00:08]}  Rxc8 {[%clk 0:01:24]} 43. Rh7 {[%clk 0:00:08]}  Rf8 {[%clk 0:01:24]} 44. Kg3 {[%clk 0:00:06]}  Kb7 {[%clk 0:01:07]} 45. Kg4 {[%clk 0:00:07]}  Kc6 {[%clk 0:01:07]} 46. Kxg5 {[%clk 0:00:07]}  Kd7 {[%clk 0:01:08]} 47. Kf6 {[%clk 0:00:08]}  b5 {[%clk 0:01:08]} 48. g4 {[%clk 0:00:08]}  a5 {[%clk 0:01:07]} 49. g5 {[%clk 0:00:08]}  b4 {[%clk 0:01:08]} 50. g6 {[%clk 0:00:08]}  bxc3 {[%clk 0:01:08]} 51. bxc3 {[%clk 0:00:09]}  a4 {[%clk 0:01:09]} 52. g7 {[%clk 0:00:09]}  Rxf7+ {[%clk 0:01:08]} 53. Kxf7 {[%clk 0:00:09]}  a3 {[%clk 0:01:08]} 54. g8=Q {[%clk 0:00:09]}  a2 {[%clk 0:01:09]} 55. Kf6+ {[%clk 0:00:08]} 1-0


[Site "https://www.chess.com"]

[Event "Titled Tuesday Blitz March 01 Late 2022"]
[White "Salinas Herrera, Pablo"]
[Black "Garriga Cazorla, Pere"]
[WhiteFideId "3407128"]
[BlackFideId "32011601"]
[WhiteElo "2541"]
[BlackElo "2458"]
[Result "1-0"]
[Round "09"]
[TimeControl "180+1"]
[Date "2022.03.01"]
[WhiteClock "0:00:18"]
[BlackClock "0:00:13"]

1. d4 {[%clk 0:03:00]}  Nf6 {[%clk 0:02:37]} 2. Nf3 {[%clk 0:03:00]}  e6 {[%clk 0:02:34]} 3. Bf4 {[%clk 0:03:00]}  c5 {[%clk 0:02:33]} 4. e3 {[%clk 0:02:59]}  d5 {[%clk 0:02:34]} 5. Nbd2 {[%clk 0:02:56]}  Nc6 {[%clk 0:02:34]} 6. c3 {[%clk 0:02:56]}  cxd4 {[%clk 0:02:34]} 7. exd4 {[%clk 0:02:56]}  Nh5 {[%clk 0:02:33]} 8. Be3 {[%clk 0:02:56]}  Bd6 {[%clk 0:02:32]} 9. g3 {[%clk 0:02:56]}  g6 {[%clk 0:02:27]} 10. Bg2 {[%clk 0:02:50]}  O-O {[%clk 0:02:27]} 11. O-O {[%clk 0:02:49]}  Ng7 {[%clk 0:02:28]} 12. Nb3 {[%clk 0:02:43]}  a5 {[%clk 0:02:25]} 13. a4 {[%clk 0:02:40]}  b6 {[%clk 0:02:26]} 14. Re1 {[%clk 0:02:40]}  Ba6 {[%clk 0:02:21]} 15. Nc1 {[%clk 0:02:40]}  Rc8 {[%clk 0:02:17]} 16. Nd3 {[%clk 0:02:39]}  Nf5 {[%clk 0:02:16]} 17. Bf4 {[%clk 0:02:35]}  Bxd3 {[%clk 0:02:13]} 18. Bxd6 {[%clk 0:02:35]}  Nxd6 {[%clk 0:02:14]} 19. Qxd3 {[%clk 0:02:35]}  Ne4 {[%clk 0:02:11]} 20. Re2 {[%clk 0:02:33]}  Qc7 {[%clk 0:02:07]} 21. Ne1 {[%clk 0:02:33]}  Nd6 {[%clk 0:02:07]} 22. h4 {[%clk 0:02:31]}  Rb8 {[%clk 0:02:05]} 23. h5 {[%clk 0:02:29]}  b5 {[%clk 0:02:04]} 24. axb5 {[%clk 0:02:29]}  Rxb5 {[%clk 0:02:05]} 25. Qf3 {[%clk 0:02:27]}  Nf5 {[%clk 0:01:57]} 26. Nd3 {[%clk 0:02:27]}  Rfb8 {[%clk 0:01:53]} 27. Bh3 {[%clk 0:02:27]}  Nd6 {[%clk 0:01:48]} 28. h6 {[%clk 0:02:17]}  Qd8 {[%clk 0:01:47]} 29. Qf4 {[%clk 0:01:57]}  Nc4 {[%clk 0:01:04]} 30. Bxe6 {[%clk 0:01:11]}  fxe6 {[%clk 0:01:01]} 31. Rxe6 {[%clk 0:01:12]}  Ne7 {[%clk 0:00:52]} 32. Rae1 {[%clk 0:01:11]}  Nf5 {[%clk 0:00:46]} 33. g4 {[%clk 0:01:06]}  Nfd6 {[%clk 0:00:33]} 34. Re7 {[%clk 0:00:59]}  Qf8 {[%clk 0:00:26]} 35. Rg7+ {[%clk 0:00:29]}  Qxg7 {[%clk 0:00:22]} 36. hxg7 {[%clk 0:00:25]}  R5b7 {[%clk 0:00:22]} 37. Qg5 {[%clk 0:00:21]}  Kxg7 {[%clk 0:00:19]} 38. Qxd5 {[%clk 0:00:21]}  a4 {[%clk 0:00:14]} 39. Re6 {[%clk 0:00:20]}  Rb5 {[%clk 0:00:13]} 40. Re7+ {[%clk 0:00:18]}  Kf8 {[%clk 0:00:13]} 41. Qe6 {[%clk 0:00:18]}  R5b7 {[%clk 0:00:13]} 42. Qf6+ {[%clk 0:00:18]}  Kg8 {[%clk 0:00:13]} 43. Qg7# {[%clk 0:00:18]} 1-0


[Site "https://www.chess.com"]

[Event "Titled Tuesday Blitz March 01 Late 2022"]
[White "Sarana, Alexey"]
[Black "Sadhwani, Raunak"]
[WhiteFideId "24133795"]
[BlackFideId "35093487"]
[WhiteElo "2665"]
[BlackElo "2616"]
[Result "1/2-1/2"]
[Round "09"]
[TimeControl "180+1"]
[Date "2022.03.01"]
[WhiteClock "0:02:27"]
[BlackClock "0:02:25"]

1. d4 {[%clk 0:03:00]}  Nf6 {[%clk 0:02:57]} 2. c4 {[%clk 0:03:01]}  g6 {[%clk 0:02:56]} 3. Nc3 {[%clk 0:03:02]}  Bg7 {[%clk 0:02:57]} 4. e4 {[%clk 0:03:03]}  d6 {[%clk 0:02:57]} 5. Be2 {[%clk 0:03:03]}  O-O {[%clk 0:02:56]} 6. Be3 {[%clk 0:03:04]}  c5 {[%clk 0:02:56]} 7. d5 {[%clk 0:03:04]}  e6 {[%clk 0:02:57]} 8. Nf3 {[%clk 0:03:05]}  exd5 {[%clk 0:02:57]} 9. cxd5 {[%clk 0:03:05]}  Bg4 {[%clk 0:02:56]} 10. Nd2 {[%clk 0:03:06]}  Bxe2 {[%clk 0:02:57]} 11. Qxe2 {[%clk 0:03:07]}  Nbd7 {[%clk 0:02:56]} 12. O-O {[%clk 0:03:05]}  Ne8 {[%clk 0:02:56]} 13. Bf4 {[%clk 0:03:01]}  Qe7 {[%clk 0:02:50]} 14. h3 {[%clk 0:02:30]}  f5 {[%clk 0:02:25]} 15. Rae1 {[%clk 0:02:27]}  g5 {[%clk 0:02:25]} 1/2-1/2


[Site "https://www.chess.com"]

[Event "Titled Tuesday Blitz March 01 Late 2022"]
[White "Sargsyan, Anna M."]
[Black "Saraci, Nderim"]
[WhiteFideId "13308130"]
[BlackFideId "6351921"]
[WhiteElo "2271"]
[BlackElo "2573"]
[Result "1-0"]
[Round "09"]
[TimeControl "180+1"]
[Date "2022.03.01"]
[WhiteClock "0:01:00"]
[BlackClock "0:00:01"]

1. d4 {[%clk 0:02:59]}  d5 {[%clk 0:02:57]} 2. c4 {[%clk 0:02:57]}  c6 {[%clk 0:02:57]} 3. Nf3 {[%clk 0:02:57]}  Bf5 {[%clk 0:02:57]} 4. Nc3 {[%clk 0:02:56]}  e6 {[%clk 0:02:57]} 5. Qb3 {[%clk 0:02:53]}  Qc8 {[%clk 0:02:52]} 6. Bf4 {[%clk 0:02:50]}  Nd7 {[%clk 0:02:49]} 7. e3 {[%clk 0:02:48]}  Ngf6 {[%clk 0:02:48]} 8. Rc1 {[%clk 0:02:48]}  Be7 {[%clk 0:02:45]} 9. cxd5 {[%clk 0:02:46]}  exd5 {[%clk 0:02:45]} 10. Nb5 {[%clk 0:02:41]}  O-O {[%clk 0:02:32]} 11. Bd6 {[%clk 0:02:13]}  Qd8 {[%clk 0:01:53]} 12. Bc7 {[%clk 0:02:13]}  Qc8 {[%clk 0:01:44]} 13. Bd6 {[%clk 0:02:13]}  Qd8 {[%clk 0:00:32]} 14. Bc7 {[%clk 0:02:12]}  Qc8 {[%clk 0:00:08]} 15. Bf4 {[%clk 0:02:12]}  Qd8 {[%clk 0:00:08]} 16. Nd6 {[%clk 0:02:10]}  Bxd6 {[%clk 0:00:08]} 17. Bxd6 {[%clk 0:02:10]}  Re8 {[%clk 0:00:07]} 18. Qxb7 {[%clk 0:02:11]}  Qa5+ {[%clk 0:00:07]} 19. Bb4 {[%clk 0:01:54]}  Qxa2 {[%clk 0:00:07]} 20. Ba3 {[%clk 0:01:51]}  Nb6 {[%clk 0:00:02]} 21. Ne5 {[%clk 0:01:34]}  Be6 {[%clk 0:00:01]} 22. Bd3 {[%clk 0:01:29]}  Nc4 {[%clk 0:00:02]} 23. Bb1 {[%clk 0:01:13]}  Na5 {[%clk 0:00:01]} 24. Qb4 {[%clk 0:01:01]}  Qb3 {[%clk 0:00:01]} 25. Qxa5 {[%clk 0:01:00]} 1-0


[Site "https://www.chess.com"]

[Event "Titled Tuesday Blitz March 01 Late 2022"]
[White "Seo, Jung Min"]
[Black "Ruiz Aguilar, Pablo Alexander"]
[WhiteFideId "1734687"]
[BlackFideId "4401352"]
[WhiteElo "2401"]
[BlackElo "2125"]
[Result "1-0"]
[Round "09"]
[TimeControl "180+1"]
[Date "2022.03.01"]
[WhiteClock "0:01:36"]
[BlackClock "0:00:52"]

1. d4 {[%clk 0:03:00]}  d5 {[%clk 0:02:54]} 2. Nf3 {[%clk 0:03:01]}  Nf6 {[%clk 0:02:52]} 3. c4 {[%clk 0:03:00]}  c6 {[%clk 0:02:52]} 4. e3 {[%clk 0:02:59]}  Nbd7 {[%clk 0:02:51]} 5. Nc3 {[%clk 0:02:58]}  e6 {[%clk 0:02:51]} 6. Bd3 {[%clk 0:02:57]}  Bd6 {[%clk 0:02:52]} 7. O-O {[%clk 0:02:57]}  O-O {[%clk 0:02:52]} 8. Qc2 {[%clk 0:02:57]}  dxc4 {[%clk 0:02:51]} 9. Bxc4 {[%clk 0:02:58]}  e5 {[%clk 0:02:51]} 10. Rd1 {[%clk 0:02:58]}  Qe7 {[%clk 0:02:51]} 11. h3 {[%clk 0:02:57]}  a6 {[%clk 0:02:47]} 12. b3 {[%clk 0:02:51]}  b5 {[%clk 0:02:41]} 13. Be2 {[%clk 0:02:51]}  Bb7 {[%clk 0:02:41]} 14. Bb2 {[%clk 0:02:51]}  e4 {[%clk 0:02:28]} 15. Nd2 {[%clk 0:02:44]}  Rfe8 {[%clk 0:02:27]} 16. a4 {[%clk 0:02:42]}  b4 {[%clk 0:02:23]} 17. Ncb1 {[%clk 0:02:42]}  c5 {[%clk 0:02:23]} 18. Nc4 {[%clk 0:02:42]}  Bc7 {[%clk 0:02:19]} 19. Nbd2 {[%clk 0:02:42]}  cxd4 {[%clk 0:02:17]} 20. Bxd4 {[%clk 0:02:41]}  Ne5 {[%clk 0:02:10]} 21. Nxe5 {[%clk 0:02:41]}  Bxe5 {[%clk 0:02:10]} 22. Bxe5 {[%clk 0:02:40]}  Qxe5 {[%clk 0:02:09]} 23. Nc4 {[%clk 0:02:40]}  Qc5 {[%clk 0:02:05]} 24. Qb2 {[%clk 0:02:34]}  Nd5 {[%clk 0:02:01]} 25. Rac1 {[%clk 0:02:25]}  Nc3 {[%clk 0:02:01]} 26. Rxc3 {[%clk 0:02:18]}  bxc3 {[%clk 0:02:00]} 27. Qxc3 {[%clk 0:02:18]}  Rac8 {[%clk 0:01:57]} 28. b4 {[%clk 0:02:16]}  Qc7 {[%clk 0:01:56]} 29. Qb2 {[%clk 0:02:09]}  Rcd8 {[%clk 0:01:54]} 30. Rc1 {[%clk 0:02:05]}  Qe7 {[%clk 0:01:20]} 31. Na5 {[%clk 0:02:04]}  Rc8 {[%clk 0:01:17]} 32. Rd1 {[%clk 0:02:01]}  Red8 {[%clk 0:01:16]} 33. Rxd8+ {[%clk 0:01:54]}  Rxd8 {[%clk 0:01:16]} 34. Qc3 {[%clk 0:01:53]}  Rc8 {[%clk 0:01:12]} 35. Qd4 {[%clk 0:01:44]}  Rd8 {[%clk 0:01:02]} 36. Qb6 {[%clk 0:01:43]}  Ba8 {[%clk 0:00:55]} 37. Bxa6 {[%clk 0:01:42]}  Qe5 {[%clk 0:00:52]} 38. Qxd8+ {[%clk 0:01:36]} 1-0


[Site "https://www.chess.com"]